[Event "*** MasterClass Titled Tuesday Blitz"]
[Site "Chess.com"]
[Date "2017.11.07"]
[Round "10"]
[White "nicegg"]
[Black "pandamaster3000"]
[Result "1-0"]
[WhiteElo "2014"]
[BlackElo "2266"]
[TimeControl "180+2"]
[EndTime "16:18:48 PST"]
[Termination "nicegg won by resignation"]

1. e4 {[%clk 0:03:01.9]} 1... e6 {[%clk 0:03:00.6]} 2. Qe2 {[%clk 0:02:59.2]}
2... b6 {[%clk 0:02:54.7]} 3. f4 {[%clk 0:02:58]} 3... Bb7 {[%clk 0:02:55.9]} 4.
d3 {[%clk 0:02:58.9]} 4... c5 {[%clk 0:02:57.2]} 5. c3 {[%clk 0:02:59.5]} 5...
Nc6 {[%clk 0:02:58.4]} 6. Qf3 {[%clk 0:03:00.1]} 6... d5 {[%clk 0:02:58.6]} 7.
Be3 {[%clk 0:02:55.3]} 7... Ba6 {[%clk 0:02:54.7]} 8. Nd2 {[%clk 0:02:47.6]}
8... dxe4 {[%clk 0:02:50.2]} 9. dxe4 {[%clk 0:02:48]} 9... Bxf1 {[%clk
0:02:50.3]} 10. Qxf1 {[%clk 0:02:46]} 10... Nf6 {[%clk 0:02:49]} 11. O-O-O
{[%clk 0:02:42.4]} 11... Qc7 {[%clk 0:02:48]} 12. Qf3 {[%clk 0:02:42.2]} 12...
O-O-O {[%clk 0:02:45.4]} 13. g4 {[%clk 0:02:42.2]} 13... h5 {[%clk 0:02:44.9]}
14. g5 {[%clk 0:02:36.4]} 14... Ng4 {[%clk 0:02:45.7]} 15. h3 {[%clk 0:02:35.3]}
15... Nxe3 {[%clk 0:02:40.2]} 16. Qxe3 {[%clk 0:02:35.4]} 16... g6 {[%clk
0:02:20.9]} 17. Ngf3 {[%clk 0:02:30.9]} 17... Bg7 {[%clk 0:02:21.8]} 18. e5
{[%clk 0:02:30.2]} 18... Ne7 {[%clk 0:02:20.4]} 19. Nc4 {[%clk 0:02:25.3]} 19...
Nf5 {[%clk 0:02:16.8]} 20. Qe4 {[%clk 0:02:09.4]} 20... Kb8 {[%clk 0:02:15.9]}
21. Rhg1 {[%clk 0:02:01.8]} 21... Rhe8 {[%clk 0:02:09.5]} 22. a4 {[%clk
0:01:43.4]} 22... Bf8 {[%clk 0:01:59.4]} 23. Kc2 {[%clk 0:01:36.2]} 23... Rxd1
{[%clk 0:01:51.1]} 24. Rxd1 {[%clk 0:01:36]} 24... Rd8 {[%clk 0:01:52.4]} 25.
Rxd8+ {[%clk 0:01:32.4]} 25... Qxd8 {[%clk 0:01:54.3]} 26. Qc6 {[%clk
0:01:25.8]} 26... Qc8 {[%clk 0:01:07]} 27. Qxc8+ {[%clk 0:01:12.8]} 27... Kxc8
{[%clk 0:01:08.9]} 28. Nfd2 {[%clk 0:01:13.8]} 28... Be7 {[%clk 0:01:08.7]} 29.
Ne4 {[%clk 0:01:14.5]} 29... Kd7 {[%clk 0:01:10.3]} 30. Kd3 {[%clk 0:01:12.2]}
30... Kc6 {[%clk 0:01:11.4]} 31. Nf6 {[%clk 0:01:11]} 31... Bxf6 {[%clk
0:01:11.4]} 32. gxf6 {[%clk 0:01:11]} 32... a6 {[%clk 0:01:04.6]} 33. Nd2 {[%clk
0:01:11.2]} 33... Nh4 {[%clk 0:00:59.7]} 34. Ke4 {[%clk 0:01:05.6]} 34... b5
{[%clk 0:00:55.9]} 35. axb5+ {[%clk 0:01:02.8]} 35... axb5 {[%clk 0:00:57.8]}
36. b3 {[%clk 0:01:03.8]} 36... Nf5 {[%clk 0:00:53.9]} 37. Nf3 {[%clk 0:01:04]}
37... Nh6 {[%clk 0:00:47.2]} 38. Ng5 {[%clk 0:01:03.8]} 38... Kb6 {[%clk
0:00:46.4]} 39. b4 {[%clk 0:01:00.2]} 39... Kc6 {[%clk 0:00:44.7]} 40. Nf3
{[%clk 0:00:59.3]} 40... Kb6 {[%clk 0:00:45.3]} 41. Ne1 {[%clk 0:00:47.9]} 41...
Kc6 {[%clk 0:00:45.5]} 42. Nd3 {[%clk 0:00:48.7]} 42... c4 {[%clk 0:00:40.2]}
43. Nc5 {[%clk 0:00:48.2]} 43... Nf5 {[%clk 0:00:33.1]} 44. Nxe6 {[%clk
0:00:47.1]} 44... Nh6 {[%clk 0:00:15.4]} 45. Nd4+ {[%clk 0:00:47.3]} 45... Kb6
{[%clk 0:00:15.5]} 46. f5 {[%clk 0:00:47.9]} 46... g5 {[%clk 0:00:14.9]} 47. e6
{[%clk 0:00:47.9]} 47... Kc7 {[%clk 0:00:15.3]} 48. Nxb5+ {[%clk 0:00:47.3]}
48... Kd8 {[%clk 0:00:15.9]} 49. Nd4 {[%clk 0:00:48.3]} 49... g4 {[%clk
0:00:15.9]} 50. hxg4 {[%clk 0:00:48.3]} 50... hxg4 {[%clk 0:00:17.8]} 51. e7+
{[%clk 0:00:48.8]} 51... Kd7 {[%clk 0:00:16.9]} 52. Nb5 {[%clk 0:00:48.9]} 52...
g3 {[%clk 0:00:18.2]} 53. Nd6 {[%clk 0:00:49.3]} 53... g2 {[%clk 0:00:18.9]} 54.
e8=Q+ {[%clk 0:00:50.3]} 54... Kxd6 {[%clk 0:00:20.8]} 55. Qe5+ {[%clk
0:00:50.2]} 55... Kd7 {[%clk 0:00:21.8]} 56. Qg3 {[%clk 0:00:51.1]} 56... Nxf5
{[%clk 0:00:23]} 57. Kxf5 {[%clk 0:00:51.4]} 1-0

[Event "*** MasterClass Titled Tuesday Blitz"]
[Site "Chess.com"]
[Date "2017.11.07"]
[Round "10"]
[White "Vamostodorecto"]
[Black "Angry_Serb"]
[Result "1/2-1/2"]
[WhiteElo "2291"]
[BlackElo "2407"]
[TimeControl "180+2"]
[EndTime "16:18:51 PST"]
[Termination "Game drawn by repetition"]

1. d4 {[%clk 0:02:40.8]} 1... Nf6 {[%clk 0:02:59.3]} 2. c4 {[%clk 0:02:36.7]}
2... c5 {[%clk 0:02:59.5]} 3. d5 {[%clk 0:02:36.9]} 3... e6 {[%clk 0:03:00.9]}
4. Nc3 {[%clk 0:02:36.8]} 4... exd5 {[%clk 0:03:01.8]} 5. cxd5 {[%clk
0:02:38.7]} 5... Bd6 {[%clk 0:03:03.2]} 6. e4 {[%clk 0:02:39.8]} 6... O-O {[%clk
0:03:01.6]} 7. Nf3 {[%clk 0:02:39.6]} 7... Re8 {[%clk 0:02:59.8]} 8. Bd3 {[%clk
0:02:40.2]} 8... Bc7 {[%clk 0:03:01.1]} 9. O-O {[%clk 0:02:39.9]} 9... d6 {[%clk
0:03:02.7]} 10. Bg5 {[%clk 0:02:37.4]} 10... h6 {[%clk 0:03:02.1]} 11. Bh4
{[%clk 0:02:37.7]} 11... a6 {[%clk 0:03:02.7]} 12. a4 {[%clk 0:02:38]} 12...
Nbd7 {[%clk 0:03:00.7]} 13. Re1 {[%clk 0:02:28.6]} 13... Nf8 {[%clk 0:03:01.1]}
14. Bg3 {[%clk 0:02:26.5]} 14... Nh5 {[%clk 0:02:59.5]} 15. Nd2 {[%clk
0:02:19.2]} 15... Nxg3 {[%clk 0:03:00.2]} 16. hxg3 {[%clk 0:02:20.4]} 16... Nh7
{[%clk 0:02:59.3]} 17. Nc4 {[%clk 0:02:18.4]} 17... Rb8 {[%clk 0:02:58.3]} 18.
a5 {[%clk 0:02:17.7]} 18... Nf6 {[%clk 0:02:57.1]} 19. e5 {[%clk 0:02:11.4]}
19... dxe5 {[%clk 0:02:17.4]} 20. d6 {[%clk 0:02:13.3]} 20... Be6 {[%clk
0:02:15.9]} 21. dxc7 {[%clk 0:02:12.3]} 21... Qxc7 {[%clk 0:02:17.8]} 22. Nxe5
{[%clk 0:02:10.1]} 22... Rbd8 {[%clk 0:02:17.2]} 23. Qc2 {[%clk 0:02:07.8]}
23... c4 {[%clk 0:02:16.8]} 24. Bf5 {[%clk 0:02:06.9]} 24... Bd5 {[%clk
0:02:12.3]} 25. Nxd5 {[%clk 0:01:59.4]} 25... Rxd5 {[%clk 0:02:14.2]} 26. Ng4
{[%clk 0:01:57.3]} 26... Rxe1+ {[%clk 0:02:11]} 27. Rxe1 {[%clk 0:01:57.6]}
27... Qxa5 {[%clk 0:02:10.5]} 28. Nxf6+ {[%clk 0:01:52.5]} 28... gxf6 {[%clk
0:02:12.4]} 29. Re8+ {[%clk 0:01:49.7]} 29... Kg7 {[%clk 0:02:13.1]} 30. Bg4
{[%clk 0:01:21.1]} 30... Re5 {[%clk 0:02:07.3]} 31. Rxe5 {[%clk 0:01:15.5]}
31... fxe5 {[%clk 0:02:09.2]} 32. Qxc4 {[%clk 0:01:02.9]} 32... Qa1+ {[%clk
0:02:10.1]} 33. Kh2 {[%clk 0:01:03.4]} 33... Qxb2 {[%clk 0:02:11.8]} 34. Be2
{[%clk 0:00:56.7]} 34... b5 {[%clk 0:02:11.1]} 35. Qg4+ {[%clk 0:00:57.2]} 35...
Kf6 {[%clk 0:02:11.4]} 36. Qf3+ {[%clk 0:00:56.5]} 36... Ke7 {[%clk 0:02:10.6]}
37. Qb7+ {[%clk 0:00:53.8]} 37... Kf8 {[%clk 0:02:10.9]} 38. Bf3 {[%clk
0:00:44.8]} 38... Qxf2 {[%clk 0:01:59.1]} 39. Qb8+ {[%clk 0:00:45.6]} 39... Kg7
{[%clk 0:01:57.1]} 40. Qxe5+ {[%clk 0:00:47.5]} 40... Kg8 {[%clk 0:01:58.6]} 41.
Qe8+ {[%clk 0:00:42.3]} 41... Kg7 {[%clk 0:01:59.4]} 42. Qe5+ {[%clk 0:00:41]}
42... Kg8 {[%clk 0:02:00.8]} 43. Qb8+ {[%clk 0:00:38.3]} 43... Kg7 {[%clk
0:02:01.9]} 44. Qb7 {[%clk 0:00:37.5]} 44... Qc5 {[%clk 0:01:48.2]} 45. Bd5
{[%clk 0:00:36.9]} 45... Qf2 {[%clk 0:01:48.4]} 46. Qxa6 {[%clk 0:00:33.8]}
46... b4 {[%clk 0:01:46]} 47. Qb7 {[%clk 0:00:25.1]} 47... Qf5 {[%clk
0:01:45.8]} 48. Bf3 {[%clk 0:00:21.4]} 48... Qc5 {[%clk 0:01:46.4]} 49. Qe4
{[%clk 0:00:20]} 49... b3 {[%clk 0:01:43.9]} 50. Qg4+ {[%clk 0:00:20.5]} 50...
Kf8 {[%clk 0:01:45.3]} 51. Qe4 {[%clk 0:00:17.7]} 51... b2 {[%clk 0:01:43.4]}
52. Qb1 {[%clk 0:00:17.4]} 52... Qc1 {[%clk 0:01:41.5]} 53. Be4 {[%clk
0:00:18.9]} 53... Qd2 {[%clk 0:01:40.2]} 54. Qc2 {[%clk 0:00:18.4]} 54... Qd4
{[%clk 0:01:40.8]} 55. Qd3 {[%clk 0:00:17.3]} 55... Qe5 {[%clk 0:01:40.7]} 56.
Qd8+ {[%clk 0:00:15.7]} 56... Kg7 {[%clk 0:01:41.5]} 57. Qd3 {[%clk 0:00:14.9]}
57... Qh5+ {[%clk 0:01:41.1]} 58. Kg1 {[%clk 0:00:15.7]} 58... Qe5 {[%clk
0:01:43]} 59. Kh2 {[%clk 0:00:16.2]} 59... Qh5+ {[%clk 0:01:43.6]} 60. Kg1
{[%clk 0:00:17.4]} 60... Qc5+ {[%clk 0:01:43.6]} 61. Kh2 {[%clk 0:00:18.2]}
61... Qh5+ {[%clk 0:01:39.9]} 62. Kg1 {[%clk 0:00:19]} 1/2-1/2

[Event "*** MasterClass Titled Tuesday Blitz"]
[Site "Chess.com"]
[Date "2017.11.07"]
[Round "10"]
[White "Lunaticx"]
[Black "GM_dmitrij"]
[Result "1-0"]
[WhiteElo "2691"]
[BlackElo "2616"]
[TimeControl "180+2"]
[EndTime "16:19:32 PST"]
[Termination "Lunaticx won by resignation"]

1. d4 {[%clk 0:03:01.9]} 1... d5 {[%clk 0:02:55.4]} 2. c4 {[%clk 0:03:02.7]}
2... e6 {[%clk 0:02:56.7]} 3. Nf3 {[%clk 0:03:02.9]} 3... Nf6 {[%clk 0:02:57.1]}
4. g3 {[%clk 0:03:04.1]} 4... Bb4+ {[%clk 0:02:58.1]} 5. Bd2 {[%clk 0:03:04.9]}
5... Bd6 {[%clk 0:02:59.2]} 6. Qc2 {[%clk 0:03:04.9]} 6... O-O {[%clk
0:02:55.1]} 7. Bg2 {[%clk 0:03:05.9]} 7... Nbd7 {[%clk 0:02:49.2]} 8. O-O {[%clk
0:03:04.8]} 8... c6 {[%clk 0:02:49.9]} 9. b3 {[%clk 0:03:04.1]} 9... Ne4 {[%clk
0:02:50.3]} 10. Bc1 {[%clk 0:03:04.5]} 10... f5 {[%clk 0:02:50.6]} 11. Ba3
{[%clk 0:02:59.8]} 11... Bxa3 {[%clk 0:02:42]} 12. Nxa3 {[%clk 0:03:01.7]} 12...
Qe7 {[%clk 0:02:43.2]} 13. Qb2 {[%clk 0:03:02.1]} 13... b6 {[%clk 0:02:43.4]}
14. b4 {[%clk 0:02:55.9]} 14... Bb7 {[%clk 0:02:39.3]} 15. Rfc1 {[%clk
0:02:49.7]} 15... a5 {[%clk 0:02:30.8]} 16. b5 {[%clk 0:02:46.9]} 16... c5
{[%clk 0:02:28.3]} 17. cxd5 {[%clk 0:02:45.1]} 17... Bxd5 {[%clk 0:02:28.8]} 18.
Nc4 {[%clk 0:02:41.8]} 18... Rac8 {[%clk 0:02:17.2]} 19. Nce5 {[%clk 0:02:32.5]}
19... cxd4 {[%clk 0:01:56.1]} 20. Qxd4 {[%clk 0:02:24.7]} 20... Ndc5 {[%clk
0:01:53]} 21. Nc4 {[%clk 0:02:17.8]} 21... Qb7 {[%clk 0:01:45.8]} 22. Nfe5
{[%clk 0:02:06.9]} 22... Rfd8 {[%clk 0:01:46]} 23. Qe3 {[%clk 0:01:49.4]} 23...
Rc7 {[%clk 0:01:12]} 24. Bxe4 {[%clk 0:01:31.5]} 24... Bxe4 {[%clk 0:01:07.3]}
25. Nxa5 {[%clk 0:01:30.7]} 25... bxa5 {[%clk 0:00:58.2]} 26. Rxc5 {[%clk
0:01:31.1]} 26... Rxc5 {[%clk 0:01:00.1]} 27. Qxc5 {[%clk 0:01:32.3]} 27... Rd5
{[%clk 0:01:00.9]} 28. Qc3 {[%clk 0:01:07.6]} 28... Rxb5 {[%clk 0:01:01.6]} 29.
f3 {[%clk 0:01:04.8]} 29... Bd5 {[%clk 0:00:49.8]} 30. Rc1 {[%clk 0:00:59]}
30... h6 {[%clk 0:00:45.6]} 31. a4 {[%clk 0:00:56.4]} 31... Rb1 {[%clk
0:00:46.3]} 32. Nd3 {[%clk 0:00:24.8]} 32... Qb6+ {[%clk 0:00:39.5]} 33. Kg2
{[%clk 0:00:25.3]} 33... Rxc1 {[%clk 0:00:40.7]} 34. Qxc1 {[%clk 0:00:24.6]}
34... Qd4 {[%clk 0:00:40]} 35. Qc2 {[%clk 0:00:17.2]} 35... Qc4 {[%clk
0:00:31.3]} 36. Qxc4 {[%clk 0:00:12.2]} 36... Bxc4 {[%clk 0:00:33.2]} 37. Kf2
{[%clk 0:00:13.2]} 37... Kf7 {[%clk 0:00:31.6]} 38. Ke3 {[%clk 0:00:14.4]} 38...
Ke7 {[%clk 0:00:29.6]} 39. Kd4 {[%clk 0:00:14.1]} 39... Bxd3 {[%clk 0:00:29.2]}
40. exd3 {[%clk 0:00:14.9]} 40... Kd6 {[%clk 0:00:28.7]} 41. f4 {[%clk
0:00:16.2]} 41... Kc6 {[%clk 0:00:24.2]} 42. Ke5 {[%clk 0:00:16.3]} 42... Kd7
{[%clk 0:00:23.2]} 43. d4 {[%clk 0:00:15.1]} 43... g6 {[%clk 0:00:21.1]} 44. d5
{[%clk 0:00:10.7]} 44... exd5 {[%clk 0:00:21.1]} 45. Kxd5 {[%clk 0:00:12.6]}
45... Ke7 {[%clk 0:00:18.2]} 46. Kc5 {[%clk 0:00:13.3]} 46... Ke6 {[%clk
0:00:19.5]} 47. Kb5 {[%clk 0:00:14.9]} 47... Kd5 {[%clk 0:00:21.4]} 48. Kxa5
{[%clk 0:00:16.5]} 48... Kc5 {[%clk 0:00:22.8]} 49. Ka6 {[%clk 0:00:18]} 49...
Kc6 {[%clk 0:00:23.9]} 50. a5 {[%clk 0:00:17.5]} 50... g5 {[%clk 0:00:25.1]} 51.
h4 {[%clk 0:00:11.3]} 51... gxf4 {[%clk 0:00:20.2]} 52. gxf4 {[%clk 0:00:12.4]}
52... h5 {[%clk 0:00:20.9]} 53. Ka7 {[%clk 0:00:12.7]} 53... Kc7 {[%clk
0:00:21.4]} 54. a6 {[%clk 0:00:13.5]} 54... Kc8 {[%clk 0:00:22.5]} 55. Kb6
{[%clk 0:00:14.8]} 55... Kb8 {[%clk 0:00:24.2]} 56. Kc5 {[%clk 0:00:16.3]} 56...
Ka7 {[%clk 0:00:26.1]} 57. Kd5 {[%clk 0:00:17.8]} 1-0

[Event "*** MasterClass Titled Tuesday Blitz"]
[Site "Chess.com"]
[Date "2017.11.07"]
[Round "10"]
[White "hypert"]
[Black "amurdercastle"]
[Result "1-0"]
[WhiteElo "2333"]
[BlackElo "2288"]
[TimeControl "180+2"]
[EndTime "16:21:56 PST"]
[Termination "hypert won by resignation"]

1. e4 {[%clk 0:03:01.9]} 1... c6 {[%clk 0:02:59.3]} 2. d4 {[%clk 0:03:01.8]}
2... d5 {[%clk 0:03:00.5]} 3. e5 {[%clk 0:03:03.5]} 3... Bf5 {[%clk 0:03:00.5]}
4. Nf3 {[%clk 0:03:05]} 4... e6 {[%clk 0:03:00.6]} 5. Be2 {[%clk 0:03:05.6]}
5... Be7 {[%clk 0:03:00.2]} 6. O-O {[%clk 0:03:07]} 6... Nh6 {[%clk 0:03:00.1]}
7. Nbd2 {[%clk 0:03:08.2]} 7... O-O {[%clk 0:03:00.3]} 8. Nb3 {[%clk 0:03:08.8]}
8... Bg6 {[%clk 0:03:00]} 9. a4 {[%clk 0:03:08.7]} 9... Nd7 {[%clk 0:03:00.1]}
10. a5 {[%clk 0:03:09.2]} 10... a6 {[%clk 0:03:00.1]} 11. Be3 {[%clk 0:03:09]}
11... Nf5 {[%clk 0:02:59.3]} 12. Qd2 {[%clk 0:03:09.4]} 12... f6 {[%clk
0:02:59.1]} 13. exf6 {[%clk 0:03:08.6]} 13... Bxf6 {[%clk 0:02:57.9]} 14. Bf4
{[%clk 0:03:08.3]} 14... Re8 {[%clk 0:02:49.1]} 15. c3 {[%clk 0:03:08.8]} 15...
e5 {[%clk 0:02:49.5]} 16. Nxe5 {[%clk 0:03:05.7]} 16... Nxe5 {[%clk 0:02:51.4]}
17. Bxe5 {[%clk 0:03:04.7]} 17... Bxe5 {[%clk 0:02:52.2]} 18. dxe5 {[%clk
0:03:05.5]} 18... Rxe5 {[%clk 0:02:54.1]} 19. g3 {[%clk 0:03:02.4]} 19... Qf6
{[%clk 0:02:49.5]} 20. Rae1 {[%clk 0:02:58.1]} 20... Rae8 {[%clk 0:02:42.4]} 21.
Bg4 {[%clk 0:02:58.1]} 21... Nd6 {[%clk 0:02:34.6]} 22. Nc5 {[%clk 0:02:23.3]}
22... Nc4 {[%clk 0:01:54.2]} 23. Qc1 {[%clk 0:02:19.4]} 23... Qe7 {[%clk
0:01:52.3]} 24. Be6+ {[%clk 0:01:41]} 24... Kh8 {[%clk 0:01:41.4]} 25. Rxe5
{[%clk 0:01:41]} 25... Nxe5 {[%clk 0:01:42.2]} 26. Qe3 {[%clk 0:01:42.5]} 26...
Be4 {[%clk 0:01:25.3]} 27. Nxe4 {[%clk 0:01:35.7]} 27... dxe4 {[%clk 0:01:26.2]}
28. Bf5 {[%clk 0:01:21.5]} 28... Nc4 {[%clk 0:01:18.6]} 29. Qd4 {[%clk
0:01:17.7]} 29... Nd6 {[%clk 0:00:43.7]} 30. Bh3 {[%clk 0:01:17.4]} 30... h6
{[%clk 0:00:31.8]} 31. Re1 {[%clk 0:01:15.7]} 31... Qe5 {[%clk 0:00:23.8]} 32.
Qxe5 {[%clk 0:00:52.4]} 32... Rxe5 {[%clk 0:00:24.4]} 33. Rd1 {[%clk 0:00:54.3]}
33... Rd5 {[%clk 0:00:10.6]} 34. Rxd5 {[%clk 0:00:53.9]} 34... cxd5 {[%clk
0:00:12.5]} 35. Be6 {[%clk 0:00:54.7]} 35... Nc4 {[%clk 0:00:13.6]} 36. Bxd5
{[%clk 0:00:55.3]} 36... Nxa5 {[%clk 0:00:14]} 37. Bxe4 {[%clk 0:00:55.3]} 37...
b5 {[%clk 0:00:15.4]} 38. b4 {[%clk 0:00:50.2]} 38... Nc4 {[%clk 0:00:15]} 39.
Bb7 {[%clk 0:00:39.7]} 39... a5 {[%clk 0:00:12.5]} 40. bxa5 {[%clk 0:00:40.2]}
40... Nxa5 {[%clk 0:00:13.4]} 41. Ba6 {[%clk 0:00:41.8]} 41... Kg8 {[%clk
0:00:08.8]} 42. Bxb5 {[%clk 0:00:41.2]} 42... Kf7 {[%clk 0:00:10.7]} 43. Kg2
{[%clk 0:00:41.7]} 43... Ke6 {[%clk 0:00:12.6]} 44. Kf3 {[%clk 0:00:42.2]} 44...
Kd5 {[%clk 0:00:14.5]} 45. c4+ {[%clk 0:00:42.5]} 45... Ke5 {[%clk 0:00:14.3]}
46. h4 {[%clk 0:00:43.1]} 46... Nb7 {[%clk 0:00:14.4]} 47. Kg4 {[%clk
0:00:43.4]} 47... Nc5 {[%clk 0:00:16.3]} 48. f4+ {[%clk 0:00:43.3]} 48... Kf6
{[%clk 0:00:16]} 49. h5 {[%clk 0:00:43.4]} 49... Ne4 {[%clk 0:00:14.3]} 50. Bc6
{[%clk 0:00:41.4]} 50... Nc5 {[%clk 0:00:15.3]} 51. Bd5 {[%clk 0:00:42.1]} 51...
Nd7 {[%clk 0:00:15.4]} 52. Kf3 {[%clk 0:00:43.4]} 52... Nc5 {[%clk 0:00:15.5]}
53. g4 {[%clk 0:00:44.9]} 53... Ke7 {[%clk 0:00:16.8]} 54. Ke3 {[%clk
0:00:45.3]} 54... Kd6 {[%clk 0:00:17.6]} 55. Kd4 {[%clk 0:00:45.2]} 55... Nd7
{[%clk 0:00:16.1]} 56. Ke4 {[%clk 0:00:45.6]} 56... Nf6+ {[%clk 0:00:13.7]} 57.
Kf5 {[%clk 0:00:46.4]} 57... Ke7 {[%clk 0:00:15.2]} 58. Bf3 {[%clk 0:00:46.1]}
58... Nd7 {[%clk 0:00:15.8]} 59. Kg6 {[%clk 0:00:43.4]} 59... Kf8 {[%clk
0:00:16.9]} 60. Bc6 {[%clk 0:00:38]} 60... Nc5 {[%clk 0:00:10.7]} 61. g5 {[%clk
0:00:33.1]} 61... hxg5 {[%clk 0:00:10.5]} 62. fxg5 {[%clk 0:00:33.4]} 62... Kg8
{[%clk 0:00:04.7]} 63. Bd5+ {[%clk 0:00:34]} 63... Kh8 {[%clk 0:00:03.6]} 64.
Kf5 {[%clk 0:00:31.9]} 64... Kh7 {[%clk 0:00:03.8]} 65. Ke5 {[%clk 0:00:31.7]}
65... Nd3+ {[%clk 0:00:03.9]} 66. Kd6 {[%clk 0:00:29.9]} 66... Nf4 {[%clk
0:00:04.9]} 67. c5 {[%clk 0:00:26.5]} 67... Nxh5 {[%clk 0:00:05.8]} 68. c6
{[%clk 0:00:27.3]} 68... Kg6 {[%clk 0:00:07.3]} 69. c7 {[%clk 0:00:27.4]} 69...
Kxg5 {[%clk 0:00:09.2]} 70. c8=Q {[%clk 0:00:27.3]} 70... Nf6 {[%clk 0:00:10.6]}
71. Be6 {[%clk 0:00:24.2]} 71... Kf4 {[%clk 0:00:11]} 72. Qc1+ {[%clk
0:00:23.6]} 72... Ke4 {[%clk 0:00:08]} 73. Qg1 {[%clk 0:00:23]} 73... Kf4 {[%clk
0:00:07.6]} 74. Qg6 {[%clk 0:00:19]} 74... Kf3 {[%clk 0:00:06.1]} 75. Ke7 {[%clk
0:00:18.1]} 75... Kf4 {[%clk 0:00:06.9]} 76. Kf7 {[%clk 0:00:19.1]} 76... Ne4
{[%clk 0:00:08.8]} 77. Qf5+ {[%clk 0:00:19.3]} 77... Ke3 {[%clk 0:00:08.9]} 78.
Kxg7 {[%clk 0:00:20.7]} 78... Kd4 {[%clk 0:00:08.8]} 79. Bf7 {[%clk 0:00:19.9]}
79... Ke3 {[%clk 0:00:08.5]} 80. Bg6 {[%clk 0:00:20.9]} 80... Nf2 {[%clk
0:00:09.3]} 81. Qe5+ {[%clk 0:00:21]} 81... Kf3 {[%clk 0:00:10.5]} 82. Bh5+
{[%clk 0:00:22.2]} 82... Kg2 {[%clk 0:00:11]} 83. Qe3 {[%clk 0:00:21.4]} 83...
Nh3 {[%clk 0:00:10.3]} 84. Qf3+ {[%clk 0:00:21.3]} 84... Kh2 {[%clk 0:00:11.4]}
85. Bg4 {[%clk 0:00:22.7]} 85... Ng1 {[%clk 0:00:11]} 86. Qf2+ {[%clk
0:00:23.3]} 86... Kh1 {[%clk 0:00:12.4]} 87. Bf3+ {[%clk 0:00:24.4]} 87... Nxf3
{[%clk 0:00:13.2]} 88. Qxf3+ {[%clk 0:00:26.1]} 88... Kh2 {[%clk 0:00:15.1]} 89.
Qg4 {[%clk 0:00:25]} 1-0